Cogmind - Beta 14 @@@ ROGUE MODE // 2024.08.18 @ 12:54:23 Player: c05-3m Result: Destroyed by G-47 Trooper with Particle Gun Performance ------------- Evolutions (2) 1000 Regions Visited (5) 1000 Robots Destroyed (28) 140 Value Destroyed (900) 900 Prototype IDs (0) 0 Alien Tech Used (0) 0 Bonus (6) 6 TOTAL SCORE: 3046 Bonus ------- High Alert Combat Kills 6 Cogmind --------- Core Integrity 0/550 Matter 290/300 Energy 75/100 System Corruption 0% Temperature Cool (74) Movement Flying (40) Location -8/Materials Parts ------- > --- POWER (1) -------- (None) > --- PROPULSION (4) --- Flight Unit > --- UTILITY (4) ------ (None) > --- WEAPON (2) ------- (None) > --- INVENTORY (5) ---- Ion Engine Armored Treads System Shield Light EM Pulse Cannon Mace Peak State ------------ > --- POWER ------------ Light Nuclear Core > --- PROPULSION ------- Armored Treads Armored Treads Armored Treads Armored Treads > --- UTILITY ---------- Medium Storage Unit Improved Terrain Scanner Heavy Armor Plating > --- WEAPON ----------- Flak Cannon Mace > --- INVENTORY -------- Ion Engine Armored Treads Armored Treads Armored Treads Armored Treads Compact Wheel Compact Wheel Small Storage Unit Light EM Pulse Cannon Great Maul [Rating: 32] Favorites ----------- Power Ion Engine Engine Ion Engine Power Core Light Nuclear Core Propulsion Armored Treads Treads Armored Treads Leg Aluminum Leg Wheel Compact Wheel Utility Small Storage Unit Device Seismic Detector Storage Small Storage Unit Processor Improved Targeting Computer Protection Heavy Armor Plating Weapon Mace Energy Gun EM Pulse Gun Energy Cannon Light EM Pulse Cannon Ballistic Gun Light Assault Rifle Ballistic Cannon Flak Cannon Launcher Rocket Launcher Impact Weapon Mace Build | -11 -10 -10 -10 -9 -8 ------- Run | Yrd Mat Min Exi Min Mat Slots Evolved 4 | . . . . . 4 Power . | . . . . . . Propulsion 2 | . . . . . 2 Utility 2 | . . . . . 2 Weapon . | . . . . . . Parts Attached 44 | 2 4 1 3 10 24 Power 4 | . 2 . . 1 1 Engine 3 | . 2 . . . 1 Core 1 | . . . . 1 . Reactor . | . . . . . . Propulsion 18 | 2 1 1 . 3 11 Treads 10 | 2 1 1 . . 6 Leg . | . . . . . . Wheel 7 | . . . . 3 4 Hover . | . . . . . . Flight 1 | . . . . . 1 Utility 10 | . . . 1 1 8 Device 3 | . . . . 1 2 Storage 3 | . . . 1 . 2 Processor 1 | . . . . . 1 Hackware . | . . . . . . Protection 3 | . . . . . 3 Artifact . | . . . . . . Weapon 12 | . 1 . 2 5 4 Energy Gun 1 | . . . . 1 . Energy Cannon 2 | . . . . 1 1 Ballistic Gun 3 | . 1 . 2 . . Ballistic Cannon 1 | . . . . . 1 Launcher 2 | . . . . 1 1 Special Weapon . | . . . . . . Impact Weapon 3 | . . . . 2 1 Slashing Weapon . | . . . . . . Piercing Weapon . | . . . . . . Special Melee Weapon . | . . . . . . Unidentified Prototypes . | . . . . . . Parts Lost 22 | . . 1 . 7 14 Power 3 | . . . . 1 2 Propulsion 11 | . . 1 . 2 8 Utility 3 | . . . . . 3 Weapon 5 | . . . . 4 1 Highest Loss Streak 7 | . . 1 . 3 7 To Critical Strikes 1 | . . . . 1 . Average Slot Usage (%) 76 | . 83 84 57 81 79 Engine 9 | . 14 14 14 5 5 Core 1 | . . . . 4 1 Treads 25 | . 28 27 28 16 27 Wheel 3 | . . . . 11 5 Device 3 | . . . . 2 7 Storage 12 | . 14 14 14 14 9 Protection 2 | . . . . . 6 Ballistic Gun 7 | . 26 28 . 4 . Ballistic Cannon 2 | . . . . . 6 Impact Weapon 4 | . . . . 6 8 Peak Build Rating 32 | 6 6 6 6 13 32 Average Rating 13 | 6 5 5 4 7 25 On Entrance 6 | 6 6 6 6 6 10 Naked Turns . | . . . . . . Heaviest Build 55 | 11 13 13 18 22 55 Greatest Support 80 | 40 40 40 40 40 80 Greatest Overweight (x) 2 | . . . . 2 2 Average Overweight (x) . | . . . . . . Largest Inventory Capacity 15 | 8 8 8 10 10 15 Average Capacity 10 | 8 8 8 8 10 13 Most Carried 14 | 6 7 6 8 7 14 Average Carried 7 | 5 5 5 7 5 10 Final Capacity 10 | 8 8 8 10 10 5 Final Carried 6 | 4 6 5 6 6 5 Class Distribution -------------------- 96% | Mutant 3% | Scavenger-Mutant Dominant Class ---------------- Mutant | -10/Materials Mutant | -10/Mines Mutant | -10/Exiles Mutant | -9/Mines Mutant | -8/Materials Resources | -11 -10 -10 -10 -9 -8 ----------- Run | Yrd Mat Min Exi Min Mat Matter Collected 1130 | 199 229 49 . 287 366 Remotely . | . . . . . . Salvage Created 856 | . 371 83 . 63 339 Parts 44 | . 22 4 . 3 15 Haulers Intercepted 1 | . . . . . 1 Recyclers Shooed . | . . . . . . Parts Field Recycled . | . . . . . . Retrieved Matter . | . . . . . . Parts Self-Destructed . | . . . . . . Prevented . | . . . . . . Kills | -11 -10 -10 -10 -9 -8 ------- Run | Yrd Mat Min Exi Min Mat Combat Hostiles Destroyed 36 | . 10 2 . 12 12 Melee 4 | . . . . 3 1 Guns 16 | . 10 2 . 1 3 Cannons 4 | . . . . . 4 AOE 10 | . . . . 8 2 Classes Destroyed 8 | . 3 . . 2 3 Builder 1 | . . . . 1 . Hauler 1 | . . . . . 1 Watcher 2 | . 1 . . . 1 Swarmer 6 | . 3 . . . 3 Grunt 15 | . 7 2 . . 6 Sentry 1 | . . . . . 1 Hunter 2 | . . . . . 2 Assembled 12 | . . . . 12 . Best Kill Streak 9 | . 3 1 . 9 4 Combat Bots Only 8 | . 3 1 . 8 4 Max Kills in Single Turn 2 | . 1 1 . 2 2 Gunslinging . | . . . . . . Exploded 2 | . . . . 2 2 Melee 1 | . . . . 1 1 Uniques/NPCs Destroyed . | . . . . . . Combat | -11 -10 -10 -10 -9 -8 -------- Run | Yrd Mat Min Exi Min Mat Hostile Shots Fired 456 | . 56 19 . 23 358 Missed 102 | . 14 5 . 5 78 Damage Taken 4848 | . 492 187 . 430 3739 Core 760 | . 79 64 . 53 564 Absorbed by Shields . | . . . . . . Core Remaining (%) 60 | 100 . . . 21 . Volleys Fired 117 | . 44 8 . 19 46 Largest 2 | . 2 2 . 2 2 Hottest 115 | . 40 40 . 73 115 Shots Fired 176 | . 87 16 . 22 51 Gun 124 | . 87 16 . 9 12 Cannon 38 | . . . . . 38 Launcher 14 | . . . . 13 1 Special . | . . . . . . Kinetic 142 | . 87 16 . 5 34 Thermal 16 | . . . . . 16 Explosive 14 | . . . . 13 1 Electromagnetic 4 | . . . . 4 . Robot Hit Streak 14 | . 14 4 . 6 8 Robot Miss Streak 8 | . 3 2 . 1 8 Penetration Max . | . . . . . . Secondary Targets . | . . . . . . Shots Hit Robots 139 | . 62 10 . 14 53 Core Hits 94 | . 24 6 . 18 46 Critical Kills 1 | . . . . . 1 Critical Parts Destroyed 3 | . . . . . 3 Critical Strikes 4 | . . . . . 4 Smash 4 | . . . . . 4 Melee Attacks 25 | . . . . 6 19 Impact 25 | . . . . 6 19 Slashing . | . . . . . . Piercing . | . . . . . . Sneak Attacks 1 | . . . . . 1 Combat Hostiles . | . . . . . . Follow-up Attacks . | . . . . . . Damage Inflicted 3003 | . 675 106 . 841 1381 Guns 926 | . 675 106 . 50 95 Cannons 637 | . . . . . 637 Explosions 709 | . . . . 640 69 Melee 731 | . . . . 151 580 Ramming . | . . . . . . Kinetic 1382 | . 675 106 . 39 562 Thermal 170 | . . . . . 170 Explosive 709 | . . . . 640 69 Electromagnetic 11 | . . . . 11 . Impact 731 | . . . . 151 580 Slashing . | . . . . . . Piercing . | . . . . . . Highest Corruption 16 | . 7 7 7 16 . Average Corruption 8 | . 2 7 7 14 . Corruption Purged . | . . . . . . Corruption Blocked . | . . . . . . Effects 31 | . 5 5 9 12 . Message Errors 4 | . . 1 1 2 . Matter Fused 5 | . 1 . 2 2 . Heat Flow Errors 4 | . 1 2 . 1 . Energy Discharges 9 | . 1 . 2 6 . Parts Fused 1 | . . 1 . . . Data Loss (minor) 4 | . 1 1 1 1 . Data Loss (major) 3 | . . . 3 . . Misfires 1 | . 1 . . . . Overload Shots . | . . . . . . Overflow Damage 220 | . . . . 54 166 Projectiles . | . . . . . . Explosions 42 | . . . . 42 . Melee 178 | . . . . 12 166 Knockbacks 27 | . . . . . 27 Impact 3 | . . . . . 3 Kinetic 20 | . . . . . 20 Secondary 4 | . . . . . 4 Self-Inflicted Damage 105 | . . . . 80 25 Shots 4 | . . . . 3 1 Rammed . | . . . . . . Targets Rammed . | . . . . . . Kicked . | . . . . . . Crushed . | . . . . . . Highest Temperature 230 | . 131 230 . 206 181 Average Temperature 71 | . 32 52 . 63 90 Received Heat Transfer 1763 | . 246 105 . 80 1332 Siege Activations . | . . . . . . Robots Corrupted 2 | . . . . . 2 Combat Hostiles 2 | . . . . . 2 Parts Fried 3 | . . . . . 3 Impact Corruptions 6 | . . . . 1 5 Robots Melted . | . . . . . . Combat Hostiles . | . . . . . . Parts Melted . | . . . . . . Heat Transferred 370 | . . . . . 370 Parts Sabotaged . | . . . . . . Parts Stolen . | . . . . . . Parts Stripped . | . . . . . . Power Chain Reactions . | . . . . . . Alert | -11 -10 -10 -10 -9 -8 ------- Run | Yrd Mat Min Exi Min Mat Peak Influence 491 | . 260 77 . 90 491 Initial 27 | . . 7 . . 27 Average 107 | . 103 57 . 52 140 Maximum Alert Level 2 | . 1 . . . 2 Low Security (%) 77 | 100 79 100 . 100 63 Level 1 20 | . 20 . . . 32 Level 2 2 | . . . . . 4 Level 3 . | . . . . . . Level 4 . | . . . . . . Level 5 . | . . . . . . High Security . | . . . . . . Max Security . | . . . . . . Squads Dispatched 5 | . 1 . . . 4 Investigation 1 | . . . . . 1 Extermination . | . . . . . . Reinforcement 4 | . 1 . . . 3 Assault . | . . . . . . Garrison . | . . . . . . Intercept . | . . . . . . Searches Triggered . | . . . . . . Construction Impeded 1 | . . . . . 1 Haulers Reinforced . | . . . . . . Active Scanning Responses . | . . . . . . Cargo Convoy Interrupts . | . . . . . . Stealth | -11 -10 -10 -10 -9 -8 --------- Run | Yrd Mat Min Exi Min Mat Distress Signals 5 | . 3 . . 1 1 Communications Jammed . | . . . . . . Distress Signals . | . . . . . . Times Spotted 85 | . 16 3 . 21 45 Peak Tracking Total 14 | . 5 2 . 9 14 Tactical Retreats 13 | . . 1 . 3 9 Traps | -11 -10 -10 -10 -9 -8 ------- Run | Yrd Mat Min Exi Min Mat Traps Triggered 5 | . 5 . . . . Indirectly . | . . . . . . Trap Hack Attempts . | . . . . . . Triggered . | . . . . . . Disarmed . | . . . . . . Reprogrammed . | . . . . . . Reused . | . . . . . . Traps Extracted . | . . . . . . Installed . | . . . . . . Triggered . | . . . . . . Machines | -11 -10 -10 -10 -9 -8 ---------- Run | Yrd Mat Min Exi Min Mat Machines Disabled 1 | . . . . . 1 Max in Single Turn 1 | . . . . . 1 Machines Repaired . | . . . . . . Machines Dismantled . | . . . . . . Machines Sabotaged . | . . . . . . Overloaded Fab Kills . | . . . . . . Hacking | -11 -10 -10 -10 -9 -8 --------- Run | Yrd Mat Min Exi Min Mat Machines Accessed 11 | . 5 . 4 . 2 Terminals 5 | . 5 . . . . Fabricators . | . . . . . . Repair Stations 1 | . . . . . 1 Recycling Units . | . . . . . . Scanalyzers 1 | . . . . . 1 Garrison Access . | . . . . . . Total Hacks 23 | . 14 . 4 . 5 Successful 14 | . 5 . 4 . 5 Failed 9 | . 9 . . . . Catastrophic 1 | . 1 . . . . Database Lockouts . | . . . . . . Manual 13 | . 13 . . . . Terminals 14 | . 14 . . . . Fabricators . | . . . . . . Repair Stations 1 | . . . . . 1 Recycling Units . | . . . . . . Scanalyzers 4 | . . . . . 4 Garrison Access . | . . . . . . Terminal Hacks 7 | . 3 . 4 . . Record 4 | . . . 4 . . Terminal Index 1 | . 1 . . . . Unreport Threat 1 | . 1 . . . . Recall Reinforcements 1 | . 1 . . . . Fabricator Hacks . | . . . . . . Repair Station Hacks 1 | . . . . . 1 Refit 1 | . . . . . 1 Recycling Unit Hacks . | . . . . . . Scanalyzer 4 | . . . . . 4 Insert Component 2 | . . . . . 2 Analyze 2 | . . . . . 2 Garrison Access Hacks . | . . . . . . Unauthorized Hacks 2 | . 2 . . . . Terminals 2 | . 2 . . . . Botnet 2 | . 2 . . . . Fabricators . | . . . . . . Repair Stations . | . . . . . . Recycling Units . | . . . . . . Scanalyzers . | . . . . . . Garrison Access . | . . . . . . Data Cores Recovered . | . . . . . . Used . | . . . . . . Hacking Detections 6 | . 5 . . . 1 Full Trace Events 1 | . . . . . 1 Feedback Events . | . . . . . . Feedback Blocked . | . . . . . . Robot Schematics Acquired . | . . . . . . Robots Built . | . . . . . . Authchips . | . . . . . . Time . | . . . . . . Total Robot Build Rating . | . . . . . . Part Schematics Acquired 1 | . . . . . 1 Parts Built . | . . . . . . Authchips . | . . . . . . Time . | . . . . . . Total Part Build Rating . | . . . . . . Parts Repaired . | . . . . . . Time . | . . . . . . Parts Recycled . | . . . . . . Recycled Matter . | . . . . . . Retrieved Matter . | . . . . . . Retrieved Components . | . . . . . . Parts Scanalyzed 2 | . . . . . 2 Part Schematics Acquired 1 | . . . . . 1 Parts Damaged . | . . . . . . Bothacking | -11 -10 -10 -10 -9 -8 ------------ Run | Yrd Mat Min Exi Min Mat Used RIF Installer . | . . . . . . Robots Hacked . | . . . . . . Non-combat . | . . . . . . Combat . | . . . . . . Robot Hacks Applied . | . . . . . . Relay Couplers Released . | . . . . . . Fabnet Peak Effective % . | . . . . . . Robots Rewired . | . . . . . . Allies Hacked . | . . . . . . Hacks Repelled . | . . . . . . Allies | -11 -10 -10 -10 -9 -8 -------- Run | Yrd Mat Min Exi Min Mat Total Allies . | . . . . . . Largest Group . | . . . . . . Highest-Rated Group . | . . . . . . Highest-Rated Ally . | . . . . . . Total Orders . | . . . . . . Ally Attacks . | . . . . . . Total Damage . | . . . . . . Kills . | . . . . . . Allies Corrupted . | . . . . . . Allies Melted . | . . . . . . Intel | -11 -10 -10 -10 -9 -8 ------- Run | Yrd Mat Min Exi Min Mat Robot Analysis Total . | . . . . . . Derelict Logs Recovered 2 | . . 1 . 1 . Drone Launches . | . . . . . . Drone Recoveries . | . . . . . . Exploration | -11 -10 -10 -10 -9 -8 ------------- Run | Yrd Mat Min Exi Min Mat Turns Passed 2345 | 4 477 138 448 376 902 Spaces Moved 1287 | 1 199 69 277 264 477 Core . | . . . . . . Treads 880 | 1 199 69 277 34 300 Legs . | . . . . . . Wheels 407 | . . . . 230 177 Hover . | . . . . . . Flight . | . . . . . . Fastest Speed 95 | 160 160 160 160 95 100 Average Speed 144 | 160 160 160 160 113 144 Slowest Speed 250 | 160 160 160 160 160 250 Overloaded Moves . | . . . . . . Propulsion Burnouts . | . . . . . . Robots Hopped . | . . . . . . Cave-ins Triggered . | . . . . . . Exploration Rate (%) 41 | 2 57 19 68 52 50 Regions Visited 5 Branch Regions 3 Pre-discovered Areas . | . . . . . . Known Exits Taken . | . . . . . . Unknown Exits Taken 5 | 1 1 1 1 1 . Scrap Searched 1 | . . . . 1 . Spaces Dug 20 | . . . . 20 . Terrain Destroyed 136 | . . . . 132 4 Melee . | . . . . . . Projectile 1 | . . . . . 1 AOE 135 | . . . . 132 3 Terrain Rammed . | . . . . . . Walls Destroyed . | . . . . . . Machines Disabled . | . . . . . . Actions | -11 -10 -10 -10 -9 -8 --------- Run | Yrd Mat Min Exi Min Mat Total 1562 | 4 280 82 283 308 605 Wait 60 | . 32 5 1 5 17 Move 1282 | . 198 68 276 263 477 Hop . | . . . . . . Pick Up 14 | . . . . 4 10 Fast Attach 13 | . . . 1 2 10 Attach 20 | . 1 1 2 6 10 Detach 11 | . 1 . 3 1 6 Swap 11 | 2 3 . . 2 4 Drop 9 | 2 1 . . . 6 Fire 117 | . 44 8 . 19 46 Melee 25 | . . . . 6 19 Ram . | . . . . . . Kick . | . . . . . . Crush . | . . . . . . Escape Stasis . | . . . . . . Rewire . | . . . . . . Trap . | . . . . . . Miscellaneous . | . . . . . . Route ------- -11/Scrapyard -10/Materials (discovered 2 exits: [*Mat] / [*Min]) -10/Mines -10/Exiles -9/Mines -8/Materials History --------- Turn | Location | Event 5 | -11/Scrapyard | Discovered new exit (range 0) 5 | -11/Scrapyard | Entered Materials 306 | -10/Materials | Build established: Mutant 406 | -10/Materials | Discovered new exit (range 10) 461 | -10/Materials | Discovered new exit (range 7) 482 | -10/Materials | Entered Mines 487 | -10/Mines | Learned Materials emergency access door positions 506 | -10/Mines | Core integrity fell below 50% 613 | -10/Mines | Deemed a non-threat by the Exiles lab entrance 613 | -10/Mines | Discovered new exit (range 5) 620 | -10/Mines | Entered Exiles 620 | -10/Exiles | Found Exiles lab abandoned 1047 | -10/Exiles | Discovered new exit (range 14) 1068 | -10/Exiles | Entered Mines 1069 | -9/Mines | Assembled infested the area 1074 | -9/Mines | Assisted by a Guerilla fighting off Assembled 1128 | -9/Mines | System corruption reached 10% 1153 | -9/Mines | Received a Rocket Launcher from a helpful Derelict 1161 | -9/Mines | Lost 3 parts (1n2w) 1230 | -9/Mines | Destroyed 8 combat bots 1427 | -9/Mines | Discovered new exit (range 7) 1444 | -9/Mines | Entered Materials 1444 | -8/Materials | Evolved 4 slots: Propulsion x2, Utility x2 2131 | -8/Materials | Core integrity fell below 50% 2198 | -8/Materials | Lost 7 parts (1p4n1u1w) 2306 | -8/Materials | Core integrity fell below 20% 2346 | -8/Materials | Released all parts (5) 2346 | -8/Materials | Destroyed by G-47 Trooper with Particle Gun Last Messages --------------- 02325_ K-01 Serf cleans the Repair Station. 02326_ Acquired 14 matter. 02328_ Slug penetrates Wall. 02332_ Com. Wheel destroyed. 02334_ K-01 Serf destroyed. 02335_ Acquired 12 matter. 02337_ Penetrated by Slug. 02337_ K-01 Serf cleans the Hadron Collector. 02340_ Penetrated by Slug. 02341_ Backup Power III destroyed. 02343_ Penetrated by Slug. 02343_ K-01 Serf destroyed. 02346_ Penetrated by Slug. 02346_ Com. Wheel destroyed. 02346_ Released Imp. Light Armor Plating. 02346_ Released Imp. Targeting Computer. 02346_ Released Lrg. Storage Unit. 02346_ Released Backup Laser III. 02346_ Released Hvy. Particle Cannon. 02346_ Acquired Flight Unit. Map ----- +----------------------------------------------------+ | ?????????????####### +??????????????????????? | | ?????????????# # #??????????????????????? | | ?????????????# """ # #??????????????????????? | | ?????????????# """ # #???#+#????????????????? | | ?????????????# """ # #???# #????????????????? | | ?????????????# # #???# #????????????????? | | ?????? ?????? # #???# #?????????######## | | ??????" ""??####+### ##### ########### | | ?????T" """ # | | ???? """ + ########## | | ??? # #????????### ## | | ??# ??### #####+##### #??????????# #? | | ??# ??? ??# #??"" ??# #??????????# #? | | ??# ????????# # "T" ## #??????????# #? | | ??##??????????# # ## +??????????# #? | | ??????????????# # ## #??????????# #? | | ???????######?# # ## #??????????# #? | | ???????# # # """ ## #??????????# #? | | ???????# """ # # """ # ??######??# #? | | ???????# """ + # """ # ??? #??# #? | | ???????# """ # #?? + ?? #??# #? | | ???????# # #???###### ?? #??# #? | | ???????# ?# #??????### ##?# #??# #? | | ???????######?# #????##!####+###### #??# #? | | ???#?######???# ######=!/*Y% # #??# #? | | ????##!! !###?# gh*!@==g * """" # #??# #? | | ????#! !#??########*"="" """" # #??# #? | | ???## #????#????#!"R"" """" + #??# #? | | ????### ####??#??????#[""" # #??# #? | | ####### #########??##########+##### #??# #? | | # # # #????# % #??# #? | | # # #""" #??#?# #### #? | | # """ # #""" ! #????# #? | | # """ # #""" #????# #####/############ ## | | # """ # # ##???#^ # * ##?# | | # + + #????# # % "" #?# | | # # ############# # "" " ##?# | | ####### ###### """ # # """ "" S" #??####+# | | ??????# # # "Y" [# # """ " " #????? | | ??????# # + # # #????? | | ??????# # # + ###/###########????? | | ??"???# + # # # #??????????"" | | ??????# # # # # """ #??????????"" | | ??????# ############# # """ #??????????"" | | ??????# # """ #??????????### | | ?? ???+ / #????????????? | | #?????# # """ #??#?????????? | | ??????# ###+####### # """ #????????????? | | ??????# # #??# # """ #????????????? | | ??????# # #??# # #????????????? | +----------------------------------------------------+ Best States ------------- Heat Dissipation 31 Energy Generation 14 Energy Capacity 275 Matter Stores 300 Matter Capacity 300 Sight Range 16 Terrain Scan Range 16 Terrain Scan Density 10 Armor Coverage 600 Evasion (%) 41 Targeting Accuracy 6 Recoil Reduction 4 Item Schematics ----------------- Lrg. Storage Unit | -8/Materials | Scanalyzed Robot Schematics ------------------ None Fabricated ------------ Nothing Alien Tech Used ----------------- None Achievements -------------- None Challenges ------------ None Game ------ Seed ProtonDeepTriangulator Manual? 0 Play Time 00:26:58 Cumulative 76.9 hours Start 2024.08.16 @ 02:22:50 End 2024.08.18 @ 12:54:23 Sessions 4 Manual Loads 0 Difficulty Rogue Special Mode None Game No. 96 Rogue 96 Adventurer 0 Explorer 0 Win Type - Total 1 Types 1/0/0/0/0/0/0/0/0 Lore% 29 Gallery% 49 Achievement% 41 Wizard Run 0 Options --------- Layout 1 ASCII 0 Keyboard 0 Movement Mouse Keybinds 0 Fullscreen 2 Font 48/Smallcaps Map View 50x35 Zoom Use 0% Tactical HUD 1 Map Filters SHIFT_HUE(280) Filters LOW_CONTRAST(13,24,33)|SHIFT_HUE(80) Steam 1 RUN: 7f94c87d-04eb-43b3-b7a1-b44ea4af952c